Cogmind - Beta 16 @@@ ROGUE MODE // 2025.10.25 @ 11:58:12 Player: CowMind Result: Destroyed self with Grenade Launcher Performance ------------- Evolutions (0) 0 Regions Visited (4) 800 Robots Destroyed (3) 15 Value Destroyed (115) 115 Prototype IDs (0) 0 Alien Tech Used (0) 0 Bonus (0) 0 TOTAL SCORE: 930 Bonus ------- None Cogmind --------- Core Integrity 0/250 Matter 192/300 Energy 100/100 System Corruption 0% Temperature Cool (6) Movement Core (50) Location -9/Mines Parts ------- > --- POWER (1) -------- (None) > --- PROPULSION (2) --- (None) > --- UTILITY (2) ------ Weapon Cycler > --- WEAPON (2) ------- (None) > --- INVENTORY (5) ---- Light Ion Engine Aluminum Leg Aluminum Leg High-capacity Storage Unit Improved Melee Analysis Suite Peak State ------------ > --- POWER ------------ (None) > --- PROPULSION ------- Flight Unit > --- UTILITY ---------- Weapon Cycler > --- WEAPON ----------- Light Assault Rifle Grenade Launcher > --- INVENTORY -------- Light Ion Engine Aluminum Leg Aluminum Leg High-capacity Storage Unit Improved Melee Analysis Suite [Rating: 7] Favorites ----------- Power Ion Engine Engine Ion Engine Propulsion Flight Unit Leg Aluminum Leg Flight Unit Flight Unit Utility Weapon Cycler Device Weapon Cycler Storage Medium Storage Unit Protection Weapon Shielding Weapon Light Assault Rifle Energy Gun Medium Laser Ballistic Gun Light Assault Rifle Launcher Grenade Launcher Build | -11 -10 -10 -10 -9 ------- Run | Yrd Mat Min Exi Min Slots Evolved . | . . . . . Power . | . . . . . Propulsion . | . . . . . Utility . | . . . . . Weapon . | . . . . . Parts Attached 11 | 5 1 4 . 1 Power 1 | 1 . . . . Engine 1 | 1 . . . . Core . | . . . . . Reactor . | . . . . . Propulsion 4 | 2 . 2 . . Treads . | . . . . . Leg 3 | 2 . 1 . . Wheel . | . . . . . Hover . | . . . . . Flight 1 | . . 1 . . Utility 3 | . 1 1 . 1 Device 1 | . . . . 1 Storage 1 | . 1 . . . Processor . | . . . . . Hackware . | . . . . . Protection 1 | . . 1 . . Artifact . | . . . . . Weapon 3 | 2 . 1 . . Energy Gun 1 | 1 . . . . Energy Cannon . | . . . . . Ballistic Gun 1 | 1 . . . . Ballistic Cannon . | . . . . . Launcher 1 | . . 1 . . Special Weapon . | . . . . . Impact Weapon . | . . . . . Slashing Weapon . | . . . . . Piercing Weapon . | . . . . . Special Melee Weapon . | . . . . . Unidentified Prototypes . | . . . . . Parts Lost 7 | . . 4 . 3 Power 1 | . . 1 . . Propulsion 3 | . . 2 . 1 Utility . | . . . . . Weapon 3 | . . 1 . 2 Highest Loss Streak 3 | . . 3 . 3 To Critical Strikes 1 | . . 1 . . Average Backups 3 | . 1 3 3 4 Power . | . 1 1 1 1 Propulsion 1 | . . 2 2 2 Utility 1 | . . . . 1 Weapon . | . . . . . Tool/Special . | . . . . . Unused Backups 5 | . . . . 5 Power 1 | . . . . 1 Propulsion 2 | . . . . 2 Utility 2 | . . . . 2 Weapon . | . . . . . Tool/Special . | . . . . . Average Slot Usage (%) 56 | . 83 51 42 55 Engine 2 | . 14 1 . . Leg 5 | . 28 13 . . Flight 11 | . . 7 14 14 Device 7 | . . . . 12 Storage 2 | . 12 7 . . Energy Gun 2 | . 14 1 . . Ballistic Gun 14 | . 14 14 14 14 Launcher 10 | . . 5 14 14 Peak Build Rating 7 | 5 6 6 3 7 Average Rating 5 | 3 5 3 3 6 On Entrance 3 | . 5 6 3 3 Avg Prop Armor Cover (%) . | . . . . . Naked Turns . | . . . . . Heaviest Build 18 | 8 18 18 4 5 Greatest Support 20 | 20 20 20 4 4 Greatest Overweight (x) 1 | . . 1 . 1 Average Overweight (x) . | . . . . . Largest Inventory Capacity 10 | 5 10 10 5 5 Average Capacity 5 | 5 9 7 5 5 Most Carried 5 | 1 4 4 4 5 Average Carried 3 | . 1 3 3 4 Final Capacity 10 | 5 10 5 5 5 Final Carried 5 | 1 4 3 4 5 Class Distribution -------------------- 100% | Mutant Dominant Class ---------------- Mutant | -10/Materials Mutant | -10/Mines Mutant | -10/Exiles Mutant | -9/Mines Resources | -11 -10 -10 -10 -9 ----------- Run | Yrd Mat Min Exi Min Matter Collected 230 | 149 81 . . . Remotely . | . . . . . Salvage Created 117 | . 81 . . 36 Parts 6 | . 4 . . 2 Haulers Intercepted . | . . . . . Recyclers Shooed . | . . . . . Parts Field Recycled . | . . . . . Retrieved Matter . | . . . . . Parts Self-Destructed . | . . . . . Prevented . | . . . . . Parts Restored . | . . . . . Kills | -11 -10 -10 -10 -9 ------- Run | Yrd Mat Min Exi Min Combat Hostiles Destroyed 4 | . 2 1 . 1 Guns 2 | . 2 . . . AOE 2 | . . 1 . 1 Classes Destroyed 2 | . 1 1 . . Grunt 3 | . 2 . . 1 Assembled 1 | . . 1 . . Best Kill Streak 1 | . 1 1 . 1 Combat Bots Only 1 | . 1 1 . 1 Max Kills in Single Turn 1 | . 1 1 . 1 Gunslinging . | . . . . . Exploded 1 | . . 1 . 1 Melee . | . . . . . Uniques/NPCs Destroyed . | . . . . . Combat | -11 -10 -10 -10 -9 -------- Run | Yrd Mat Min Exi Min Hostile Shots Fired 89 | . 35 48 . 6 Missed 35 | . 14 19 . 2 Hits 54 | . 21 29 . 4 Projectile 54 | . 21 29 . 4 Critical Strikes 3 | . 2 1 . . Part Disruptions 3 | . . 3 . . Damage Taken 761 | . 270 368 . 123 Core 253 | . 60 104 . 89 Absorbed by Shields . | . . . . . Core Remaining (%) 100 | 100 . . . . Volleys Fired 18 | . 11 3 . 4 Largest 2 | . 2 1 . 1 Hottest 70 | . 70 30 . 30 Shots Fired 29 | . 22 3 . 4 Gun 24 | . 22 . . 2 Cannon . | . . . . . Launcher 5 | . . 3 . 2 Special . | . . . . . Kinetic 13 | . 11 . . 2 Thermal 11 | . 11 . . . Explosive 5 | . . 3 . 2 Electromagnetic . | . . . . . Robot Hit Streak 13 | . 10 13 . 3 Robot Miss Streak 5 | . 5 . . 1 Penetration Max . | . . . . . Secondary Targets . | . . . . . Shots Hit Robots 18 | . 12 3 . 3 Core Hits 9 | . 5 2 . 2 Critical Kills . | . . . . . Critical Parts Destroyed . | . . . . . Critical Strikes . | . . . . . Melee Attacks . | . . . . . Impact . | . . . . . Slashing . | . . . . . Piercing . | . . . . . Sneak Attacks . | . . . . . Combat Hostiles . | . . . . . Follow-up Attacks . | . . . . . Damage Inflicted 337 | . 122 85 . 130 Guns 128 | . 122 . . 6 Cannons . | . . . . . Explosions 209 | . . 85 . 124 Melee . | . . . . . Ramming . | . . . . . Kinetic 52 | . 46 . . 6 Thermal 76 | . 76 . . . Explosive 209 | . . 85 . 124 Electromagnetic . | . . . . . Impact . | . . . . . Slashing . | . . . . . Piercing . | . . . . . Highest Corruption . | . . . . . Average Corruption . | . . . . . Corruption Purged . | . . . . . Corruption Blocked . | . . . . . Overload Shots . | . . . . . Overflow Damage 36 | . . . . 36 Projectiles . | . . . . . Explosions 36 | . . . . 36 Melee . | . . . . . Knockbacks . | . . . . . Impact . | . . . . . Kinetic . | . . . . . Secondary . | . . . . . Self-Inflicted Damage 76 | . . . . 76 Shots 2 | . . . . 2 Rammed . | . . . . . Targets Rammed . | . . . . . Kicked . | . . . . . Crushed . | . . . . . Highest Temperature 154 | . 154 1 . 14 Average Temperature 66 | . 69 1 . 14 Received Heat Transfer 398 | . 174 200 . 24 Siege Activations . | . . . . . Martial Activations . | . . . . . Shielding Activations . | . . . . . Robots Disrupted . | . . . . . Combat Hostiles . | . . . . . Robots Corrupted . | . . . . . Combat Hostiles . | . . . . . Parts Fried . | . . . . . Impact Corruptions . | . . . . . Robots Melted . | . . . . . Combat Hostiles . | . . . . . Parts Melted . | . . . . . Heat Transferred 222 | . 222 . . . Parts Sabotaged . | . . . . . Parts Stolen . | . . . . . Parts Stripped . | . . . . . Power Chain Reactions . | . . . . . Alert | -11 -10 -10 -10 -9 ------- Run | Yrd Mat Min Exi Min Maximum Alert Level . | . . . . . Low Security (%) 100 | 100 100 100 . 100 Level 1 . | . . . . . Level 2 . | . . . . . Level 3 . | . . . . . Level 4 . | . . . . . Level 5 . | . . . . . High Security . | . . . . . Max Security . | . . . . . Peak Influence 50 | . 30 9 . 50 Initial 9 | . . 9 . . Average 3 | . 6 . . 4 Influence Increases 163 | . 70 2 . 91 Destroy 0b10 Robot/C 60 | . 40 . . 20 Destroy Leader 10 | . 10 . . . Successful Hack 5 | . 5 . . . Destroy Structure 13 | . . 2 . 11 Lose Combat Pursuer 75 | . 15 . . 60 Influence Decreases 153 | . 45 27 . 81 Entered New Map 16 | . . 16 . . Time Decay 107 | . 45 2 . 60 Lost Part 30 | . . 9 . 21 Squads Dispatched 2 | . 1 . . 1 Investigation 1 | . . . . 1 Extermination . | . . . . . Reinforcement 1 | . 1 . . . Assault . | . . . . . Garrison . | . . . . . Intercept . | . . . . . Searches Triggered . | . . . . . Construction Impeded . | . . . . . Haulers Reinforced . | . . . . . Active Scanning Responses . | . . . . . Cargo Convoy Interrupts . | . . . . . Stealth | -11 -10 -10 -10 -9 --------- Run | Yrd Mat Min Exi Min Distress Signals 1 | . 1 . . . Communications Jammed . | . . . . . Distress Signals . | . . . . . Times Spotted 38 | . 10 23 . 5 Peak Tracking Total 20 | . 5 20 . 4 Tactical Retreats 5 | . 1 3 . 1 Traps | -11 -10 -10 -10 -9 ------- Run | Yrd Mat Min Exi Min Traps Triggered . | . . . . . Indirectly . | . . . . . Trap Hack Attempts . | . . . . . Triggered . | . . . . . Disarmed . | . . . . . Reprogrammed . | . . . . . Reused . | . . . . . Traps Extracted . | . . . . . Installed . | . . . . . Triggered . | . . . . . Machines | -11 -10 -10 -10 -9 ---------- Run | Yrd Mat Min Exi Min Machines Disabled . | . . . . . Max in Single Turn . | . . . . . Machines Repaired . | . . . . . Machines Dismantled . | . . . . . Machines Sabotaged . | . . . . . Overloaded Fab Kills . | . . . . . Hacking | -11 -10 -10 -10 -9 --------- Run | Yrd Mat Min Exi Min Machines Accessed 6 | . 1 . 4 1 Terminals 1 | . 1 . . . Fabricators . | . . . . . Repair Stations . | . . . . . Recycling Units . | . . . . . Scanalyzers . | . . . . . Garrison Access . | . . . . . Total Hacks 53 | . 3 . 49 1 Successful 53 | . 3 . 49 1 Failed . | . . . . . Catastrophic . | . . . . . Database Lockouts . | . . . . . Manual 3 | . 3 . . . Terminals 3 | . 3 . . . Fabricators . | . . . . . Repair Stations . | . . . . . Recycling Units . | . . . . . Scanalyzers . | . . . . . Garrison Access . | . . . . . Terminal Hacks 51 | . 1 . 49 1 Record 49 | . . . 49 . Open Door 1 | . . . . 1 Zone Layout 1 | . 1 . . . Fabricator Hacks . | . . . . . Repair Station Hacks . | . . . . . Recycling Unit Hacks . | . . . . . Scanalyzer . | . . . . . Garrison Access Hacks . | . . . . . Unauthorized Hacks 2 | . 2 . . . Terminals 2 | . 2 . . . Track 1 | . 1 . . . Botnet 1 | . 1 . . . Fabricators . | . . . . . Repair Stations . | . . . . . Recycling Units . | . . . . . Scanalyzers . | . . . . . Garrison Access . | . . . . . Data Cores Recovered . | . . . . . Used . | . . . . . Hacking Detections 1 | . 1 . . . Full Trace Events . | . . . . . Feedback Events . | . . . . . Feedback Blocked . | . . . . . Robot Schematics Acquired . | . . . . . Robots Built . | . . . . . Authchips . | . . . . . Time . | . . . . . Total Robot Build Rating . | . . . . . Part Schematics Acquired . | . . . . . Parts Built . | . . . . . Authchips . | . . . . . Time . | . . . . . Total Part Build Rating . | . . . . . Part Studies Acquired . | . . . . . Parts Repaired . | . . . . . Time . | . . . . . Parts Recycled . | . . . . . Recycled Matter . | . . . . . Retrieved Matter . | . . . . . Retrieved Components . | . . . . . Parts Scanalyzed . | . . . . . Part Schematics Acquired . | . . . . . Parts Damaged . | . . . . . Bothacking | -11 -10 -10 -10 -9 ------------ Run | Yrd Mat Min Exi Min Used RIF Installer . | . . . . . Robots Hacked . | . . . . . Non-combat . | . . . . . Combat . | . . . . . Robot Hacks Applied . | . . . . . Relay Couplers Released . | . . . . . Fabnet Peak Effective % . | . . . . . Robots Rewired . | . . . . . Allies Hacked . | . . . . . Hacks Repelled . | . . . . . Allies | -11 -10 -10 -10 -9 -------- Run | Yrd Mat Min Exi Min Total Allies . | . . . . . Largest Group . | . . . . . Highest-Rated Group . | . . . . . Highest-Rated Ally . | . . . . . Total Orders . | . . . . . Ally Attacks . | . . . . . Total Damage . | . . . . . Kills . | . . . . . Allies Corrupted . | . . . . . Allies Melted . | . . . . . Intel | -11 -10 -10 -10 -9 ------- Run | Yrd Mat Min Exi Min Active Infowar (turns) . | . . . . . Robot Analysis Total . | . . . . . Derelict Logs Recovered 3 | . . 2 . 1 Drone Launches . | . . . . . Drone Recoveries . | . . . . . Exploration | -11 -10 -10 -10 -9 ------------- Run | Yrd Mat Min Exi Min Turns Passed 1216 | 45 149 152 192 678 Spaces Moved 1025 | 32 89 202 477 225 Core 1 | 1 . . . . Treads . | . . . . . Legs 173 | 31 89 53 . . Wheels . | . . . . . Hover . | . . . . . Flight 851 | . . 149 477 225 Fastest Speed 40 | 50 120 40 40 40 Average Speed 63 | 117 120 64 40 80 Slowest Speed 190 | 120 120 190 40 120 Overloaded Moves . | . . . . . Propulsion Burnouts . | . . . . . Robots Hopped . | . . . . . Potential Cave-ins . | . . . . . Cave-ins Triggered . | . . . . . Exploration Rate (%) 41 | 3 28 50 89 36 Regions Visited 4 Branch Regions 3 Pre-discovered Areas 3 | . . 2 1 . Known Exits Taken . | . . . . . Unknown Exits Taken 4 | 1 1 1 1 . Scrap Searched . | . . . . . Spaces Dug . | . . . . . Terrain Destroyed 17 | . . 6 . 11 Melee . | . . . . . Projectile . | . . . . . AOE 17 | . . 6 . 11 Terrain Rammed . | . . . . . Walls Destroyed . | . . . . . Machines Disabled . | . . . . . Actions | -11 -10 -10 -10 -9 --------- Run | Yrd Mat Min Exi Min Total 1567 | 37 111 221 477 721 Wait 505 | . 8 7 . 490 Move 1021 | 31 88 201 476 225 Hop . | . . . . . Pick Up 9 | 1 3 3 1 1 Fast Attach 7 | 5 1 . . 1 Attach 4 | . . 4 . . Detach . | . . . . . Swap . | . . . . . Drop 3 | . . 3 . . Fire 18 | . 11 3 . 4 Melee . | . . . . . Ram . | . . . . . Kick . | . . . . . Crush . | . . . . . Escape Stasis . | . . . . . Rewire . | . . . . . Trap . | . . . . . Miscellaneous . | . . . . . Route ------- -11/Scrapyard -10/Materials -10/Mines -10/Exiles (discovered 2 exits: *Min x2) -9/Mines History --------- Turn | Location | Event 5 | -11/Scrapyard | Discovered new exit (range 16) 46 | -11/Scrapyard | Entered Materials 177 | -10/Materials | Discovered new exit (range 16) 195 | -10/Materials | Entered Mines 196 | -10/Mines | Assembled infested the area 213 | -10/Mines | Learned location of Zion (-6) 224 | -10/Mines | Core integrity fell below 50% 240 | -10/Mines | Lost 3 parts (1p1n1w) 312 | -10/Mines | Build established: Mutant 326 | -10/Mines | Learned location of Storage (-7) 345 | -10/Mines | Deemed a non-threat by the Exiles lab entrance 345 | -10/Mines | Discovered new exit (range 5) 347 | -10/Mines | Entered Exiles 355 | -10/Exiles | Discovered new exit (range 15) 360 | -10/Exiles | Met 8R-AWN 366 | -10/Exiles | Met EX-HEX 381 | -10/Exiles | Met EX-BIN 420 | -10/Exiles | Met EX-DEC 448 | -10/Exiles | Discovered new exit (range 10) 480 | -10/Exiles | Visited The Gauntlet 539 | -10/Exiles | Entered Mines 580 | -9/Mines | Met a Derelict shopkeep closing up shop 1216 | -9/Mines | Core integrity fell below 20% 1217 | -9/Mines | Destroyed self with Grenade Launcher Last Messages --------------- 01071_ U-05 Engineer builds a Wall. 01073_ T-07 Excavator is excavating. 01075_ U-05 Engineer lays Concrete. 01079_ U-05 Engineer builds a Wall. 01080_ T-07 Excavator is excavating. 01083_ U-05 Engineer builds a Wall. 01092_ U-05 Engineer lays Concrete. 01097_ T-07 Excavator is excavating. 01098_ U-05 Engineer builds a Wall. 01106_ U-05 Engineer lays Concrete. 01110_ U-05 Engineer builds a Wall. 01117_ U-05 Engineer lays Concrete. 01120_ U-05 Engineer builds a Wall. 01132_ U-05 Engineer lays Concrete. 01215_ Flight Unit destroyed. 01215_ Destroyed Flight Unit. 01215_ G-34 Mercenary destroyed. 01215_ Lgt. Assault Rifle destroyed. 01217_ Grenade Launcher destroyed. 01217_ Destroyed Grenade Launcher. Map ----- +----------------------------------------------------+ | | | | | | | | | ?????????????????????????????????????????########? | | ?????????????????????????????????????????#""""""#? | | ?????????????????????????????????????????# ! /!]#? | | ?????????????????????????????????????????## ##? | | ??????????????????????????????????????????#! !#?? | | ????????????????????????????????????????#### ###? | | ??????????????????????????????????####### X ## | | ??????????????????????????????????# # | | ??????????????????????????????????# #### # | | ??????????????????????????????????# #??### # | | ??????????????????????????????##### #????## ## | | ??????????????????????????????# #?????## #? | | ??????????????????????????????# #??????## #? | | ??????????????????????????????# #####??###### ## | | ??????????????????????????????# #?????## # | | ??????????????????????????????# ###??## | | ??????# ################?????## #??# #### | | ??????# r #####?# #??# ##?# | | ##############% #?# #??# ### | | ?????????????????# g*% ### ##??## ## ## | | ?????????????????????### g ## ##???###?## ## | | ???????????????????????# @ ## #???????## | | ???????????????????????# # #???????# | | ??????????????????????## #??????## ## | | ??????????????????????# t ##???#### ##? | | ??????????????????????# ##????# ##? | | ??????????????????????# #######?????# ## | | ??????????????????????## ##???????????###### | | ???????????????????????# #?????????????????## | | ???????????????????????# k#??????????????????## | | ???????????????????????# #???????????????????### | | ???????????????????????# #?????????????????????## | | ???????????????????????# #??????????????????????# | | ?????????????????????### #?????????????????????# | | ????????????????????## ##????????????????????# | | ???????????????????## ##???????????????????# | | ??????????????????## #???????????????????## | | ??????????????????# #????????????????????# | | ??????????????????# ##?####??????????????? | | ??????????????????## ### ##?????????????? | | ???????????????????#### #???????????### | | ??????????????????????###### #????????#### | | ???????????????????????????## #######?## | | ????????????????????????????# ## ### | | ????????????????????????????# """ | | ????????????????????????????# """ | +----------------------------------------------------+ Best States ------------- Heat Dissipation 25 Energy Generation 10 Energy Capacity 250 Matter Stores 274 Matter Capacity 300 Sight Range 16 Terrain Scan Density 10 Weapon Cycling 15 Evasion (%) 62 Item Schematics ----------------- None Robot Schematics ------------------ None Fabricated ------------ Nothing Repaired ---------- Nothing Studied --------- None Alien Tech Used ----------------- None Achievements -------------- None Challenges ------------ None Game ------ Seed PlexusCouplerFrame Manual? 0 Play Time 00:13:17 Cumulative 35.6 hours Start 2025.10.25 @ 11:47:00 End 2025.10.25 @ 11:58:12 Sessions 1 Manual Loads 0 Difficulty Rogue Special Mode None Game No. 34 Rogue 22 Adventurer 1 Explorer 11 Win Type - Total 2 Types 1/0/1/0/0/0/0/0/0/0 Lore% 17 Gallery% 28 Achievement% 35 Wizard Run 0 Options --------- Layout 1 ASCII 0 Keyboard 0 Movement Numpad Keybinds 0 Fullscreen 1 Font 24/Smallcaps Map View 50x35 Zoom Use 0% Tactical HUD 1 Map Filters NONE Filters NONE Steam 1 RUN: f4984ac5-0764-454a-b37c-b1d416fe7433